fUST/lending_fUST_20240325
["ID","MTS","AMOUNT","RATE_DAILY","PERIOD"]
[320356263,1711323048040,-1595.87,0.00054794,120]
[320356264,1711323048049,-500.0,0.00054794,120]
[320356265,1711323048060,-512.03691836,0.00054794,120]
[320356266,1711323048069,-11454.76,0.00054794,90]
[320356267,1711323048079,-500.0,0.00054794,120]
[320356268,1711323048088,-639.04,0.00054794,120]
[320356269,1711323048099,-500.76444318,0.00054794,120]
[320356270,1711323048108,-1069.21,0.00054794,120]
[320356271,1711323048117,-502.0537624,0.00054794,120]
[320356272,1711323048126,-500.0,0.00054794,120]
[320356273,1711323048136,-811.31,0.00054794,120]
[320356274,1711323048145,-503.55845917,0.00054794,120]
[320356275,1711323048154,-503.35081131,0.00054794,120]
[320356276,1711323048164,-503.63670818,0.00054794,120]
[320356277,1711323048173,-2312.71,0.00054794,21]
[320356278,1711323048182,-504.94596385,0.00054794,120]
[320356279,1711323048193,-500.0,0.00054794,120]
[320356280,1711323048202,-360.01753707,0.00054794,120]
[320356281,1711323048212,-1033.9,0.00054794,120]
[320356282,1711323048222,-500.0,0.00054794,120]
[320356283,1711323048232,-500.8366974,0.00054794,120]
[320356284,1711323048242,-501.1481208,0.00054794,120]
[320356285,1711323048252,-500.0,0.00054794,120]
[320356286,1711323048262,-1183.54,0.00054794,120]
[320356287,1711323048274,-500.0,0.00054794,2]
[320356288,1711323048284,-501.52453578,0.00054794,120]
[320356289,1711323048294,-500.0,0.00054794,120]
[320356290,1711323048305,-500.0,0.00054794,120]
[320356291,1711323048315,-500.0,0.00054794,120]
[320356292,1711323048325,-500.0,0.00054794,120]
[320356293,1711323048334,-926.14,0.00054794,120]
[320356294,1711323048347,-500.0,0.00054794,120]
[320356295,1711323048357,-1102.77,0.00054794,120]
[320356296,1711323048366,-689.61,0.00054794,120]
[320356297,1711323048376,-500.0,0.00054794,120]
[320356298,1711323048385,-501.59799803,0.00054794,120]
[320356299,1711323048394,-500.0,0.00054794,120]
[320356300,1711323048403,-560.64546208,0.00054794,120]
[320356301,1711323048413,-500.0,0.00054794,120]
[320356302,1711323048423,-845.32,0.00054794,120]
[320356303,1711323048432,-500.0,0.00054794,2]
[320356304,1711323048441,-515.45315816,0.00054794,120]
[320356305,1711323048451,-929.66,0.00054794,120]
[320356306,1711323048462,-2166.53,0.00054794,120]
[320356307,1711323048472,-8587.33,0.00054794,120]
[320356308,1711323048481,-501.52282256,0.00054794,120]
[320356309,1711323048491,-500.0,0.00054794,60]
[320356310,1711323048501,-527.10070021,0.00054794,120]
[320356311,1711323048511,-500.0,0.00054794,120]
[320356312,1711323048520,-500.0,0.00054794,120]
[320356313,1711323048529,-500.0,0.00054794,120]
[320356314,1711323048539,-500.0,0.00054794,120]
[320356315,1711323048548,-503.53302898,0.00054794,120]
[320356316,1711323048558,-500.0,0.00054794,120]
[320356317,1711323048567,-1000.0,0.00055,2]
[320356318,1711323048576,-166.666666,0.00055131,2]
[320356319,1711323048585,-171.36253759,0.00055741,2]
[320356320,1711323048596,-268.54,0.00055863,6]
[320356321,1711323048605,-150.55595749,0.00056135,120]
[320356322,1711323048616,-500.0,0.00056163,30]
[320356323,1711323048625,-455.21,0.00056548,6]
[320356324,1711323048634,-800.0,0.0005718,110]
[320356325,1711323048643,-1132.92,0.00057233,6]
[320356326,1711323048652,-171.36253759,0.00057327,2]
[320356327,1711323048661,-166.666666,0.00057427,2]
[320356328,1711323048670,-232.57659439,0.00057533,4]
[320356329,1711323048679,-370.3086225,0.00057533,4]
[320356330,1711323048689,-500.0,0.00057533,30]
[320356331,1711323048698,-1007.52,0.00057533,120]
[320356332,1711323048707,-1007.52,0.00057533,120]
[320356333,1711323048716,-1007.52,0.00057533,120]
[320356334,1711323048725,-500.0,0.00057534,120]
[320356335,1711323048735,-500.0,0.00057534,120]
[320356336,1711323048744,-507.18876177,0.00057534,120]
[320356337,1711323048753,-500.0,0.00057534,120]
[320356338,1711323048762,-500.0,0.00057534,120]
[320356339,1711323048771,-500.0,0.00057534,120]
[320356340,1711323048780,-500.0,0.00057534,120]
[320356341,1711323048789,-500.0,0.00057534,120]
[320356342,1711323048799,-500.0,0.00057534,120]
[320356343,1711323048808,-500.0,0.00057534,120]
[320356344,1711323048818,-500.0,0.00057534,120]
[320356345,1711323048827,-500.0,0.00057534,120]
[320356346,1711323048836,-500.0,0.00057534,120]
[320356347,1711323048846,-500.0,0.00057534,120]
[320356348,1711323048855,-500.0,0.00057534,120]
[320356349,1711323048863,-500.0,0.00057534,120]
[320356350,1711323048872,-500.0,0.00057534,120]
[320356351,1711323048881,-500.0,0.00057534,120]
[320356352,1711323048891,-500.0,0.00057534,120]
[320356353,1711323048900,-500.0,0.00057534,120]
[320356354,1711323048909,-500.0,0.00057534,120]
[320356355,1711323048918,-500.0,0.00057534,120]
[320356356,1711323048927,-500.0,0.00057534,120]
[320356357,1711323048936,-500.0,0.00057534,120]
[320356358,1711323048945,-500.0,0.00057534,120]
[320356359,1711323048954,-500.0,0.00057534,120]
[320356360,1711323048965,-341.49649754,0.00057534,120]
[320356361,1711323048975,-500.0,0.00057534,120]
[320356362,1711323048985,-500.10265167,0.00057534,120]
[320356363,1711323048994,-1768.82,0.00057534,120]
[320356364,1711323049003,-500.0,0.00057534,120]
[320356365,1711323049012,-500.0,0.00057534,120]
[320356366,1711323049021,-505.82,0.00057534,120]
[320356367,1711323049030,-500.0,0.00057534,120]
[320356368,1711323049040,-500.0,0.00057534,120]
[320356369,1711323049048,-500.0,0.00057534,120]
[320356370,1711323049057,-500.0,0.00057534,120]
[320356371,1711323049067,-500.0,0.00057534,120]
[320356372,1711323049076,-500.0,0.00057534,120]
[320356373,1711323049085,-500.0,0.00057534,120]
[320356374,1711323049095,-500.0,0.00057534,120]
[320356375,1711323049104,-215.84443436,0.00057534,120]
[320356376,1711323049113,-500.0,0.00057534,120]
[320356377,1711323049122,-500.0,0.00057534,120]
[320356378,1711323049131,-500.0,0.00057534,120]
[320356379,1711323049140,-500.0,0.00057534,120]
[320356380,1711323049150,-500.0,0.00057534,120]
[320356381,1711323049159,-500.0,0.00057534,120]
[320356382,1711323049167,-500.0,0.00057534,120]
[320356383,1711323049177,-500.0,0.00057534,120]
[320356384,1711323049186,-500.0,0.00057534,120]
[320356385,1711323049195,-500.0,0.00057534,120]
[320356386,1711323049204,-500.0,0.00057534,120]
[320356387,1711323049213,-500.0,0.00057534,120]
[320356388,1711323049222,-500.0,0.00057534,120]
[320356389,1711323049231,-500.0,0.00057534,120]
[320356390,1711323049240,-500.0,0.00057534,120]
[320356391,1711323049249,-501.99883934,0.00057534,120]
[320356392,1711323049257,-500.0,0.00057534,120]
[320356393,1711323049266,-500.0,0.00057534,120]
[320356394,1711323049275,-500.0,0.00057534,120]
[320356395,1711323049284,-500.0,0.00057534,120]
[320356396,1711323049294,-500.0,0.00057534,120]
[320356397,1711323049303,-500.0,0.00057534,120]
[320356398,1711323049312,-500.0,0.00057534,120]
[320356399,1711323049321,-500.0,0.00057534,120]
[320356400,1711323049330,-500.0,0.00057534,60]
[320356401,1711323049340,-500.0,0.00057534,120]
[320356402,1711323049350,-500.0,0.00057534,120]
[320356403,1711323049359,-1195.46,0.00057534,120]
[320356404,1711323049368,-500.0,0.00057534,120]
[320356405,1711323049377,-500.0,0.00057534,120]
[320356406,1711323049386,-1083.46,0.00057534,120]
[320356407,1711323049395,-500.0,0.00057534,120]
[320356408,1711323049405,-500.0,0.00057534,120]
[320356409,1711323049414,-500.0,0.00057534,120]
[320356410,1711323049424,-500.0,0.00057534,120]
[320356411,1711323049433,-500.0,0.00057534,120]
[320356412,1711323049442,-500.0,0.00057534,120]
[320356413,1711323049451,-500.0,0.00057534,120]
[320356414,1711323049461,-500.0,0.00057534,120]
[320356415,1711323049471,-1043.75,0.00057534,120]
[320356416,1711323049480,-500.0,0.00057534,120]
[320356417,1711323049491,-3762.1,0.00057534,120]
[320356418,1711323049500,-500.0,0.00057534,120]
[320356419,1711323049511,-500.73,0.00057534,120]
[320356420,1711323049521,-1725.69,0.00057534,2]
[320356421,1711323049530,-500.0,0.00057534,120]
[320356422,1711323049540,-6268.43,0.00057534,120]
[320356423,1711323049549,-9960.35,0.00057534,120]
[320356424,1711323049558,-500.0,0.00057534,120]
[320356425,1711323049567,-500.0,0.00057534,120]
[320356426,1711323049576,-1500.0,0.00057534,120]
[320356427,1711323049586,-500.0,0.00057534,120]
[320356428,1711323049597,-2102.57,0.00057534,120]
[320356429,1711323049607,-502.31015407,0.00057534,120]
[320356430,1711323049617,-500.0,0.00057534,120]
[320356431,1711323049626,-1868.55,0.00057534,120]
[320356432,1711323049635,-500.0,0.00057534,120]
[320356433,1711323049644,-807.31,0.00057534,120]
[320356434,1711323049653,-1220.15,0.00057534,120]
[320356435,1711323049663,-1455.77,0.00057534,120]
[320356436,1711323049672,-500.0,0.00057534,120]
[320356437,1711323049681,-500.0,0.00057534,120]
[320356438,1711323049690,-2323.49,0.00057534,120]
[320356439,1711323049700,-1190.15,0.00057534,120]
[320356440,1711323049709,-1549.66,0.00057534,120]
[320356441,1711323049718,-1006.42,0.00057534,120]
[320356442,1711323049727,-500.0,0.00057534,120]
[320356443,1711323049735,-1105.98,0.00057534,120]
[320356444,1711323049744,-500.0,0.00057534,120]
[320356445,1711323049753,-188.57699819,0.00057534,120]
[320356446,1711323049762,-500.0,0.00057534,120]
[320356447,1711323049771,-5292.18,0.00057534,120]
[320356448,1711323049782,-10984.42,0.00057534,120]
[320356449,1711323049792,-500.0,0.00057534,120]
[320356450,1711323049802,-378.54871205,0.00057534,120]
[320356451,1711323049812,-500.0,0.00057534,120]
[320356452,1711323049824,-500.0,0.00057534,120]
[320356453,1711323049833,-500.0,0.00057534,120]
[320356454,1711323049844,-500.0,0.00057534,120]
[320356455,1711323049853,-500.0,0.00057534,120]
[320356456,1711323049862,-500.0,0.00057534,120]
[320356457,1711323049875,-500.0,0.00057534,120]
[320356458,1711323049884,-1595.87,0.00057534,120]
[320356459,1711323049894,-500.0,0.00057534,120]
[320356460,1711323049904,-11454.76,0.00057534,90]
[320356461,1711323049916,-500.0,0.00057534,120]
[320356462,1711323049926,-639.04,0.00057534,120]
[320356463,1711323049935,-1069.21,0.00057534,120]
[320356464,1711323049944,-500.0,0.00057534,120]
[320356465,1711323049954,-811.31,0.00057534,120]
[320356466,1711323049965,-2312.71,0.00057534,21]
[320356467,1711323049975,-500.0,0.00057534,120]
[320356468,1711323049984,-1033.9,0.00057534,120]
[320356469,1711323049993,-500.0,0.00057534,120]
[320356470,1711323050004,-500.0,0.00057534,120]
[320356471,1711323050014,-1183.54,0.00057534,120]
[320356472,1711323050024,-500.0,0.00057534,120]
[320356473,1711323050034,-500.0,0.00057534,120]
[320356474,1711323050044,-926.14,0.00057534,120]
[320356475,1711323050054,-500.0,0.00057534,120]
[320356476,1711323050064,-1102.77,0.00057534,120]
[320356477,1711323050073,-689.61,0.00057534,120]
[320356478,1711323050083,-237.56448548,0.00057534,120]
[320356479,1711323050092,-570.22,0.00057534,120]
[320356480,1711323050103,-500.0,0.00057534,120]
[320356481,1711323050112,-845.32,0.00057534,120]
[320356482,1711323050122,-929.66,0.00057534,120]
[320356483,1711323050132,-2166.53,0.00057534,120]
[320356484,1711323050141,-8587.33,0.00057534,120]
[320356485,1711323050150,-500.0,0.00057534,60]
[320356486,1711323050160,-355.95286191,0.00057534,120]
[320356487,1711323050169,-500.0,0.00057534,120]
[320356488,1711323050178,-173.68171767,0.00058063,2]
[320356489,1711323050188,-375.0,0.00058903,30]
[320356490,1711323050197,-1007.52,0.00059999,120]
[320356491,1711323050207,-1007.52,0.00059999,120]
[320356492,1711323050216,-22423.28908975,0.0006,120]
[320356493,1711323050225,-1000.0,0.0006,120]
[320356494,1711323050234,-478.40079591,0.00060171,7]
[320356495,1711323050243,-176.38232131,0.00060171,7]
[320356496,1711323050252,-200.58211284,0.00060171,7]
[320356497,1711323050262,-302.24068739,0.00060171,7]
[320356498,1711323050364,-2776.21081002,0.00060173,2]
[320356499,1711323050388,-1007.52,0.00060272,120]
[320356500,1711323050397,-1007.52,0.00060272,120]
[320356501,1711323050407,-1007.52,0.00060272,120]
[320356502,1711323050416,-1007.52,0.00060272,120]
[320356503,1711323050425,-1007.52,0.00060272,120]
[320356504,1711323050434,-1007.52,0.00060272,120]
[320356505,1711323050443,-1007.52,0.00060272,120]
[320356506,1711323050453,-1007.69,0.00060272,120]
[320356507,1711323050463,-500.0,0.00060273,120]
[320356508,1711323050472,-500.0,0.00060273,120]
[320356509,1711323050482,-500.0,0.00060273,120]
[320356510,1711323050493,-500.0,0.00060273,120]
[320356511,1711323050503,-500.0,0.00060273,120]
[320356512,1711323050513,-500.0,0.00060273,120]
[320356513,1711323050522,-503.59996678,0.00060273,120]
[320356514,1711323050532,-500.0,0.00060273,120]
[320356515,1711323050542,-500.0,0.00060273,120]
[320356516,1711323050551,-500.0,0.00060273,120]
[320356517,1711323050561,-500.0,0.00060273,120]
[320356518,1711323050571,-500.0,0.00060273,120]
[320356519,1711323050580,-500.0,0.00060273,120]
[320356520,1711323050590,-1768.82,0.00060273,120]
[320356521,1711323050605,-505.82,0.00060273,120]
[320356522,1711323050615,-500.0,0.00060273,120]
[320356523,1711323050624,-500.0,0.00060273,120]
[320356524,1711323050633,-500.0,0.00060273,120]
[320356525,1711323050643,-385.17849458,0.00060273,120]
[320356526,1711323050652,-500.0,0.00060273,120]
[320356527,1711323050662,-500.0,0.00060273,120]
[320356528,1711323050672,-500.0,0.00060273,120]
[320356529,1711323050682,-500.0,0.00060273,120]
[320356530,1711323050691,-500.0,0.00060273,120]
[320356531,1711323050702,-500.0,0.00060273,120]
[320356532,1711323050712,-500.0,0.00060273,120]
[320356533,1711323050722,-500.0,0.00060273,120]
[320356534,1711323050732,-500.0,0.00060273,120]
[320356535,1711323050742,-500.0,0.00060273,120]
[320356536,1711323050751,-517.255857,0.00060273,120]
[320356537,1711323050760,-500.0,0.00060273,120]
[320356538,1711323050770,-517.255857,0.00060273,120]
[320356539,1711323050779,-500.0,0.00060273,120]
[320356540,1711323050789,-151.0,0.00060273,120]
[320356541,1711323050799,-500.0,0.00060273,120]
[320356542,1711323050810,-500.0,0.00060273,120]
[320356543,1711323050819,-500.0,0.00060273,120]
[320356544,1711323050829,-500.0,0.00060273,60]
[320356545,1711323050839,-500.0,0.00060273,120]
[320356546,1711323050849,-500.0,0.00060273,120]
[320356547,1711323050860,-1195.46,0.00060273,120]
[320356548,1711323050869,-500.0,0.00060273,120]
[320356549,1711323050879,-500.0,0.00060273,120]
[320356550,1711323050889,-151.661497,0.00060273,120]
[320356551,1711323050898,-1083.46,0.00060273,120]
[320356552,1711323050907,-500.0,0.00060273,120]
[320356553,1711323050917,-500.0,0.00060273,120]
[320356554,1711323050926,-500.0,0.00060273,120]
[320356555,1711323050936,-500.0,0.00060273,120]
[320356556,1711323050945,-151.0,0.00060273,120]
[320356557,1711323050955,-151.0,0.00060273,120]
[320356558,1711323050964,-1043.75,0.00060273,120]
[320356559,1711323050974,-3762.1,0.00060273,120]
[320356560,1711323050983,-500.73,0.00060273,120]
[320356561,1711323050992,-303.744216,0.00060273,10]
[320356562,1711323051001,-303.744216,0.00060273,10]
[320356563,1711323051011,-1725.69,0.00060273,2]
[320356564,1711323051020,-500.0,0.00060273,120]
[320356565,1711323051029,-6268.43,0.00060273,120]
[320356566,1711323051038,-9960.35,0.00060273,120]
[320356567,1711323051048,-166.16,0.00060273,120]
[320356568,1711323051057,-500.0,0.00060273,120]
[320356569,1711323051066,-1500.0,0.00060273,120]
[320356570,1711323051075,-187.37086163,0.00060273,120]
[320356571,1711323051085,-2102.57,0.00060273,120]
[320356572,1711323051094,-500.0,0.00060273,120]
[320356573,1711323051104,-151.0,0.00060273,120]
[320356574,1711323051114,-151.994254,0.00060273,120]
[320356575,1711323051123,-1868.55,0.00060273,120]
[320356576,1711323051133,-807.31,0.00060273,120]
[320356577,1711323051142,-1220.15,0.00060273,120]
[320356578,1711323051152,-1455.77,0.00060273,120]
[320356579,1711323051161,-500.0,0.00060273,120]
[320356580,1711323051171,-2323.49,0.00060273,120]
[320356581,1711323051180,-1190.15,0.00060273,120]
[320356582,1711323051189,-1549.66,0.00060273,120]
[320356583,1711323051199,-1006.42,0.00060273,120]
[320356584,1711323051208,-539.05,0.00060273,120]
[320356585,1711323051218,-1105.98,0.00060273,120]
[320356586,1711323051227,-500.0,0.00060273,120]
[320356587,1711323051238,-500.0,0.00060273,120]
[320356588,1711323051247,-5292.18,0.00060273,120]
[320356589,1711323051256,-10984.42,0.00060273,120]
[320356590,1711323051265,-500.0,0.00060273,120]
[320356591,1711323051274,-500.0,0.00060273,120]
[320356592,1711323051284,-500.0,0.00060273,120]
[320356593,1711323051293,-500.0,0.00060273,120]
[320356594,1711323051302,-500.0,0.00060273,120]
[320356595,1711323051311,-500.0,0.00060273,120]
[320356596,1711323051320,-151.0,0.00060273,120]
[320356597,1711323051329,-1595.87,0.00060273,120]
[320356598,1711323051338,-337.57758946,0.00060273,120]
[320356599,1711323051348,-11454.76,0.00060273,90]
[320356600,1711323051358,-500.0,0.00060273,120]
[320356601,1711323051367,-639.04,0.00060273,120]
[320356602,1711323051376,-1069.21,0.00060273,120]
[320356603,1711323051385,-500.0,0.00060273,120]
[320356604,1711323051395,-811.31,0.00060273,120]
[320356605,1711323051404,-2312.71,0.00060273,21]
[320356606,1711323051413,-500.0,0.00060273,120]
[320356607,1711323051423,-1033.9,0.00060273,120]
[320356608,1711323051433,-500.0,0.00060273,120]
[320356609,1711323051442,-500.0,0.00060273,120]
[320356610,1711323051452,-1183.54,0.00060273,120]
[320356611,1711323051462,-500.0,0.00060273,120]
[320356612,1711323051472,-287.596421,0.00060273,120]
[320356613,1711323051481,-287.596421,0.00060273,120]
[320356614,1711323051490,-926.14,0.00060273,120]
[320356615,1711323051500,-500.0,0.00060273,120]
[320356616,1711323051509,-1102.77,0.00060273,120]
[320356617,1711323051519,-689.61,0.00060273,120]
[320356618,1711323051529,-500.0,0.00060273,120]
[320356619,1711323051539,-845.32,0.00060273,120]
[320356620,1711323051548,-929.66,0.00060273,120]
[320356621,1711323051557,-2166.53,0.00060273,120]
[320356622,1711323051567,-8587.33,0.00060273,120]
[320356623,1711323051576,-500.0,0.00060273,60]
[320356624,1711323051585,-151.0,0.00060273,120]
[320356625,1711323051595,-1000.0,0.00060273,120]
[320356626,1711323051606,-1000.0,0.00060273,120]
[320356627,1711323051620,-1000.0,0.00060273,120]
[320356628,1711323051629,-1000.0,0.00060273,120]
[320356629,1711323051639,-1000.0,0.00060273,120]
[320356630,1711323051649,-892.99702273,0.00060273,120]
[320356631,1711323051658,-500.0,0.00060273,120]
[320356632,1711323051668,-1500.0,0.00062,120]
[320356633,1711323051677,-151.0,0.000621,120]
[320356634,1711323051686,-151.45456969,0.00062787,22]
[320356635,1711323051697,-821.42541702,0.00062798,70]
[320356636,1711323051708,-1000.0,0.00062912,120]
[320356637,1711323051718,-151.0,0.00062912,120]
[320356638,1711323051727,-156.51801232,0.00062913,120]
[320356639,1711323051737,-156.51801232,0.00062913,120]
[320356640,1711323051746,-156.51801232,0.00062913,120]
[320356641,1711323051755,-156.51801232,0.00062913,120]
[320356642,1711323051765,-156.51801232,0.00062913,120]
[320356643,1711323051774,-156.51801232,0.00062913,120]
[320356644,1711323051783,-157.01,0.00062913,120]
[320356645,1711323051793,-400.0,0.00063,40]
[320356646,1711323051802,-234.7111418,0.00063011,7]
[320356647,1711323051811,-255.28602487,0.00063011,7]
[320356648,1711323051822,-891.82418922,0.00063011,7]
[320356649,1711323051831,-987.38885002,0.00063011,7]
[320356650,1711323051841,-215.89741008,0.00063011,7]
[320356651,1711323051851,-313.26288222,0.00063011,7]
[320356652,1711323051860,-43361.11185924,0.00063011,7]
[320356653,1711323051870,-151.0,0.00063011,120]
[320356654,1711323051880,-303.744216,0.00063011,10]
[320356655,1711323051890,-303.744216,0.00063011,10]
[320356656,1711323051900,-151.0,0.00063011,120]
[320356657,1711323051912,-151.0,0.00063011,120]
[320356658,1711323051922,-287.596421,0.00063011,120]
[320356659,1711323051933,-287.596421,0.00063011,120]
[320356660,1711323051944,-15981.47702153,0.00063013,7]
[320356661,1711323051954,-305.13961893,0.00063013,7]
[320356662,1711323051965,-500.0,0.00063013,120]
[320356663,1711323051975,-531.12,0.00063013,120]
[320356664,1711323051985,-500.0,0.00063013,120]
[320356665,1711323051996,-500.0,0.00063013,120]
[320356666,1711323052005,-500.0,0.00063013,120]
[320356667,1711323052014,-500.0,0.00063013,120]
[320356668,1711323052025,-584.22392644,0.00063013,120]
[320356669,1711323052034,-500.0,0.00063013,120]
[320356670,1711323052044,-500.0,0.00063013,120]
[320356671,1711323052053,-156.2994651,0.00063013,120]
[320356672,1711323052063,-151.0,0.00063013,120]
[320356673,1711323052073,-1768.82,0.00063013,120]
[320356674,1711323052083,-505.82,0.00063013,120]
[320356675,1711323052093,-500.0,0.00063013,120]
[320356676,1711323052106,-500.0,0.00063013,120]
[320356677,1711323052117,-500.0,0.00063013,120]
[320356678,1711323052126,-500.0,0.00063013,120]
[320356679,1711323052136,-500.0,0.00063013,120]
[320356680,1711323052147,-500.0,0.00063013,120]
[320356681,1711323052157,-500.0,0.00063013,120]
[320356682,1711323052170,-500.0,0.00063013,120]
[320356683,1711323052182,-500.0,0.00063013,120]
[320356684,1711323052193,-151.0,0.00063013,120]
[320356685,1711323052203,-500.0,0.00063013,120]
[320356686,1711323052214,-500.0,0.00063013,120]
[320356687,1711323052224,-517.255857,0.00063013,120]
[320356688,1711323052236,-517.255857,0.00063013,120]
[320356689,1711323052247,-500.0,0.00063013,120]
[320356690,1711323052259,-517.255857,0.00063013,120]
[320356691,1711323052270,-517.255857,0.00063013,120]
[320356692,1711323052282,-151.0,0.00063013,120]
[320356693,1711323052293,-151.0,0.00063013,120]
[320356694,1711323052304,-500.0,0.00063013,120]
[320356695,1711323052315,-500.0,0.00063013,120]
[320356696,1711323052325,-591.18,0.00063013,120]
[320356697,1711323052337,-560.22,0.00063013,60]
[320356698,1711323052346,-500.0,0.00063013,120]
[320356699,1711323052358,-500.0,0.00063013,120]
[320356700,1711323052367,-1195.46,0.00063013,120]
[320356701,1711323052376,-500.0,0.00063013,120]
[320356702,1711323052385,-1083.46,0.00063013,120]
[320356703,1711323052395,-500.0,0.00063013,120]
[320356704,1711323052404,-500.0,0.00063013,120]
[320356705,1711323052415,-500.0,0.00063013,120]
[320356706,1711323052427,-500.0,0.00063013,120]
[320356707,1711323052436,-151.0,0.00063013,120]
[320356708,1711323052446,-1043.75,0.00063013,120]
[320356709,1711323052455,-3762.1,0.00063013,120]
[320356710,1711323052466,-500.73,0.00063013,120]
[320356711,1711323052476,-303.744216,0.00063013,10]
[320356712,1711323052485,-303.744216,0.00063013,10]
[320356713,1711323052495,-1725.69,0.00063013,2]
[320356714,1711323052505,-500.0,0.00063013,120]
[320356715,1711323052514,-6268.43,0.00063013,120]
[320356716,1711323052523,-9960.35,0.00063013,120]
[320356717,1711323052532,-500.0,0.00063013,120]
[320356718,1711323052543,-1500.0,0.00063013,120]
[320356719,1711323052552,-2102.57,0.00063013,120]
[320356720,1711323052562,-500.0,0.00063013,120]
[320356721,1711323052571,-151.0,0.00063013,120]
[320356722,1711323052582,-1868.55,0.00063013,120]
[320356723,1711323052592,-807.31,0.00063013,120]
[320356724,1711323052605,-1220.15,0.00063013,120]
[320356725,1711323052614,-1455.77,0.00063013,120]
[320356726,1711323052624,-500.0,0.00063013,120]
[320356727,1711323052633,-2323.49,0.00063013,120]
[320356728,1711323052642,-1190.15,0.00063013,120]
[320356729,1711323052651,-1549.66,0.00063013,120]
[320356730,1711323052660,-1006.42,0.00063013,120]
[320356731,1711323052669,-1105.98,0.00063013,120]
[320356732,1711323052679,-500.0,0.00063013,120]
[320356733,1711323052689,-5292.18,0.00063013,120]
[320356734,1711323052699,-10984.42,0.00063013,120]
[320356735,1711323052709,-500.0,0.00063013,120]
[320356736,1711323052720,-500.0,0.00063013,120]
[320356737,1711323052730,-500.0,0.00063013,120]
[320356738,1711323052739,-500.0,0.00063013,120]
[320356739,1711323052748,-173.14833591,0.00063013,120]
[320356740,1711323052758,-290.270509,0.00063013,120]
[320356741,1711323052768,-1595.87,0.00063013,120]
[320356742,1711323052778,-11454.76,0.00063013,90]
[320356743,1711323052788,-500.0,0.00063013,120]
[320356744,1711323052798,-639.04,0.00063013,120]
[320356745,1711323052808,-1069.21,0.00063013,120]
[320356746,1711323052818,-500.0,0.00063013,120]
[320356747,1711323052828,-811.31,0.00063013,120]
[320356748,1711323052837,-2312.71,0.00063013,21]
[320356749,1711323052848,-500.0,0.00063013,120]
[320356750,1711323052858,-1033.9,0.00063013,120]
[320356751,1711323052870,-500.0,0.00063013,120]
[320356752,1711323052881,-500.0,0.00063013,120]
[320356753,1711323052891,-1183.54,0.00063013,120]
[320356754,1711323052901,-500.0,0.00063013,120]
[320356755,1711323052911,-287.596421,0.00063013,120]
[320356756,1711323052922,-287.596421,0.00063013,120]
[320356757,1711323052932,-926.14,0.00063013,120]
[320356758,1711323052943,-500.0,0.00063013,120]
[320356759,1711323052954,-1102.77,0.00063013,120]
[320356760,1711323052965,-689.61,0.00063013,120]
[320356761,1711323052977,-500.0,0.00063013,120]
[320356762,1711323052987,-845.32,0.00063013,120]